bitfinex/quotes_BTCUSD_20220109
["timestamp","ask_amount","ask_price","bid_price","bid_amount"]
[1641742261808,0.495478,41601.0,41600.0,0.00018366]
[1641742262208,0.945478,41601.0,41600.0,0.00018366]
[1641742262408,0.945478,41601.0,41598.0,0.00018367]
[1641742262608,0.387478,41599.0,41598.0,0.00018367]
[1641742262908,0.74732889,41599.0,41598.0,0.00018367]
[1641742263111,0.84732889,41599.0,41598.0,0.00018367]
[1641742263508,0.84732889,41599.0,41596.0,0.00018369]
[1641742263710,0.398478,41599.0,41596.0,0.00018369]
[1641742263909,0.011,41599.0,41598.0,7.032e-05]
[1641742264148,0.011,41599.0,41598.0,0.00136668]
[1641742264349,0.011,41599.0,41598.0,0.001437]
[1641742264752,0.011,41599.0,41598.0,0.51691274]
[1641742264951,0.00114917,41605.0,41598.0,0.90439342]
[1641742265151,0.00114917,41605.0,41598.0,1.03497933]
[1641742265352,0.00114917,41605.0,41599.0,0.387551]
[1641742265551,0.00114917,41605.0,41599.0,0.48772797]
[1641742265753,0.00114917,41605.0,41604.0,0.00120462]
[1641742266052,0.00020783,41610.0,41604.0,0.00120462]
[1641742266350,0.00020783,41610.0,41605.0,0.387551]
[1641742266554,0.00020783,41610.0,41606.0,0.28807151]
[1641742266751,0.00020784,41610.0,41608.0,0.41257805]
[1641742266952,0.78091563,41621.0,41609.0,0.63389067]
[1641742267153,0.41644683,41621.0,41609.0,0.24633967]
[1641742267355,0.417596,41621.0,41613.0,0.30106804]
[1641742267653,0.417596,41621.0,41609.0,0.24633967]
[1641742267654,0.387478,41620.0,41609.0,0.24633967]
[1641742267894,0.387478,41620.0,41609.0,0.24833967]
[1641742268301,0.387478,41620.0,41610.0,0.33753099]
[1641742268498,0.387478,41620.0,41614.0,0.26913915]
[1641742268694,0.43544683,41621.0,41614.0,0.70483125]
[1641742268895,0.43544683,41621.0,41615.0,0.387551]
[1641742269097,0.41644683,41621.0,41615.0,0.387551]
[1641742269296,0.00129788,41627.0,41620.0,0.22149457]
[1641742269497,0.387478,41626.0,41620.0,0.22149457]
[1641742269697,0.25034,41632.0,41624.0,0.2712925]
[1641742269698,0.20034,41632.0,41624.0,0.2712925]
[1641742269895,0.20034,41632.0,41621.0,0.72415568]
[1641742269896,0.064,41627.0,41621.0,0.75842926]
[1641742270097,0.064,41627.0,41620.0,0.22249457]
[1641742270296,0.00021537,41625.0,41620.0,0.22249457]
[1641742270496,0.00021537,41625.0,41620.0,0.001]
[1641742271000,0.00021537,41625.0,41621.0,0.26777336]
[1641742271199,0.00021538,41625.0,41622.0,0.7442283]
[1641742271398,0.00021538,41625.0,41624.0,0.00124796]
[1641742271652,0.00021538,41625.0,41624.0,1.24886996]
[1641742271853,0.00021538,41625.0,41624.0,0.44886996]
[1641742272053,0.00021538,41625.0,41622.0,0.016]
[1641742272255,0.00021538,41625.0,41623.0,0.387551]
[1641742272455,0.06421537,41627.0,41623.0,0.387551]
[1641742272854,0.06421537,41627.0,41624.0,0.26202874]
[1641742273054,0.06421537,41627.0,41622.0,0.016]
[1641742273354,0.00021537,41627.0,41620.0,0.1201526]
[1641742273557,0.0002118,41628.0,41613.0,0.24033]
[1641742273755,0.0002118,41628.0,41622.0,0.049]
[1641742273954,0.387478,41627.0,41622.0,0.049]
[1641742274154,0.30740567,41623.0,41622.0,0.049]
[1641742274356,0.69488367,41623.0,41622.0,0.049]
[1641742274757,4.7047472,41600.0,41594.0,0.08469]
[1641742274956,4.7047472,41600.0,41599.0,0.120208]
[1641742275155,4.7047472,41600.0,41599.0,0.12148714]
[1641742275395,4.7047472,41600.0,41599.0,1.56126557]
[1641742275596,3.8877702,41600.0,41599.0,0.70216018]
[1641742275795,1.97638925,41600.0,41599.0,1.06035804]
[1641742275997,1.97638925,41600.0,41599.0,1.10465804]
[1641742276199,1.97638925,41600.0,41599.0,1.49220904]
[1641742276398,1.97638925,41600.0,41599.0,1.71835972]
[1641742276595,0.777306,41622.0,41600.0,0.09999075]
[1641742276596,0.00113638,41606.0,41600.0,0.09999075]
[1641742276797,0.00113638,41606.0,41604.0,0.387551]
[1641742277097,0.00127792,41625.0,41608.0,0.00120177]
[1641742277297,0.387478,41624.0,41609.0,0.120178]
[1641742277499,0.00127792,41625.0,41609.0,0.220178]
[1641742277698,0.00127792,41625.0,41613.0,0.23553598]
[1641742277699,0.27145066,41618.0,41613.0,0.23553598]
[1641742277900,0.27145066,41618.0,41609.0,0.007]
[1641742279155,0.27145066,41618.0,41608.0,0.19180449]
[1641742279550,0.0002154,41616.0,41608.0,0.19180449]
[1641742279951,0.28818757,41623.0,41608.0,0.20480449]
[1641742280151,0.06137792,41625.0,41615.0,0.20796877]
[1641742280152,0.00127792,41625.0,41615.0,0.20796877]
[1641742280553,0.00121143,41633.0,41616.0,0.36268788]
[1641742280752,0.00121143,41633.0,41615.0,0.20796877]
[1641742280753,0.387478,41632.0,41615.0,0.20796877]
[1641742281151,0.28219843,41625.0,41615.0,0.26805577]
[1641742281953,0.28219843,41625.0,41615.0,0.31005577]
[1641742282755,0.28219843,41625.0,41615.0,0.652987]
[1641742282998,0.28219843,41625.0,41616.0,0.060087]
[1641742283799,0.00021182,41623.0,41616.0,0.100087]
[1641742284699,0.2505479,41623.0,41616.0,0.100087]
[1641742284900,0.00021182,41622.0,41617.0,0.387551]
[1641742285300,0.00021182,41622.0,41616.0,0.100087]
[1641742285700,0.00021182,41622.0,41616.0,0.060087]
[1641742285902,0.31836891,41625.0,41617.0,9.633e-05]
[1641742286503,0.31836891,41625.0,41617.0,0.34152737]
[1641742286753,0.31836891,41625.0,41617.0,9.633e-05]
[1641742287955,0.32036891,41625.0,41617.0,0.05409633]
[1641742288154,0.32058091,41625.0,41617.0,0.05417506]
[1641742289156,0.26143907,41618.0,41617.0,0.00017506]
[1641742289356,0.000212,41625.0,41620.0,0.00123285]
[1641742289657,0.000212,41625.0,41624.0,0.03768395]
[1641742289856,0.000212,41625.0,41624.0,0.48530795]
[1641742290057,0.000212,41625.0,41624.0,0.58530795]
[1641742290255,0.000212,41625.0,41624.0,0.48530795]
[1641742290507,0.27293223,41628.0,41624.0,0.48530795]
[1641742290508,0.00021198,41627.0,41624.0,0.00124395]
[1641742290707,0.00021198,41627.0,41620.0,0.063]
[1641742291210,0.00021198,41627.0,41618.0,1.07015154]
[1641742291407,0.00021198,41626.0,41621.0,0.21312017]
[1641742291711,0.00021198,41626.0,41619.0,0.060083]
[1641742291912,0.00021198,41626.0,41618.0,0.02]
[1641742291913,0.060098,41625.0,41618.0,0.02]
[1641742292108,0.7511719,41624.0,41618.0,0.02]
[1641742292308,0.387478,41620.0,41618.0,0.02]
[1641742292509,0.65019933,41619.0,41618.0,0.02]
[1641742293106,0.65019933,41619.0,41617.0,0.00017845]
[1641742293711,0.65019933,41619.0,41616.0,0.00017846]
[1641742294551,0.36185554,41618.0,41616.0,0.00017846]
[1641742294751,0.387478,41617.0,41616.0,0.00017846]
[1641742294952,0.387478,41617.0,41615.0,0.00017828]
[1641742295951,0.387478,41617.0,41615.0,0.005]
[1641742296552,0.26272133,41619.0,41615.0,0.005]
[1641742296957,0.387478,41618.0,41615.0,0.005]
[1641742297153,0.387478,41618.0,41614.0,0.00017823]
[1641742298005,0.387478,41618.0,41614.0,0.01717823]
[1641742298205,0.26272133,41619.0,41614.0,0.01717823]
[1641742298406,0.26272133,41619.0,41616.0,0.25779962]
[1641742298606,0.00020789,41625.0,41616.0,0.25779962]
[1641742298809,0.00020789,41625.0,41618.0,0.060082]
[1641742299109,0.00020789,41625.0,41619.0,0.38883483]
[1641742299308,0.0004158,41625.0,41620.0,0.36737917]
[1641742299511,0.00020791,41625.0,41624.0,0.25230294]
[1641742299708,0.00020791,41625.0,41620.0,0.35142925]
[1641742299907,0.00020791,41625.0,41620.0,0.022]
[1641742300108,0.33146816,41626.0,41620.0,0.022]
[1641742300509,0.00020446,41625.0,41620.0,0.022]
[1641742300710,0.00020446,41625.0,41624.0,0.21129197]
[1641742301661,0.24244263,41626.0,41619.0,0.39876001]
[1641742301856,0.01,41625.0,41624.0,0.022]
[1641742303154,0.00011174,41627.0,41620.0,0.22463187]
[1641742303755,0.00021142,41627.0,41622.0,0.0001885]
[1641742304155,0.30152689,41625.0,41622.0,0.0001885]
[1641742304558,0.30044689,41625.0,41622.0,0.0001885]
[1641742304956,0.30044689,41625.0,41621.0,0.00018851]
[1641742305154,0.00021142,41627.0,41621.0,0.25190588]
[1641742306004,0.00021129,41627.0,41622.0,0.00018863]
[1641742306505,0.00021129,41627.0,41622.0,0.33511279]
[1641742306707,0.00021129,41627.0,41622.0,0.00018863]
[1641742306906,0.00021129,41627.0,41622.0,0.00037725]
[1641742307111,0.00021129,41627.0,41622.0,0.00018862]
[1641742308009,0.00641893,41627.0,41622.0,0.04536677]
[1641742308209,0.00620764,41627.0,41622.0,0.04517815]
[1641742309857,0.00020764,41627.0,41622.0,0.00017815]
[1641742310058,0.00032764,41627.0,41622.0,0.01917815]
[1641742310259,0.00032771,41627.0,41622.0,0.01917808]
[1641742310960,0.06042071,41627.0,41622.0,0.01917808]
[1641742311161,1.037478,41623.0,41622.0,0.00017808]
[1641742311361,1.3610627,41623.0,41622.0,0.00035616]
[1641742311559,1.3610627,41623.0,41622.0,0.00017808]
[1641742311961,1.3560627,41623.0,41622.0,0.00017808]
[1641742312163,0.7110627,41623.0,41622.0,0.00017808]
[1641742312559,0.7110627,41623.0,41615.0,0.87198298]
[1641742312560,0.7110627,41623.0,41620.0,0.00017868]
[1641742312762,0.3235847,41623.0,41620.0,0.00017868]
[1641742313904,0.3345847,41623.0,41620.0,0.00017868]
[1641742314308,0.3345847,41623.0,41619.0,0.00017868]
[1641742314713,0.3345847,41623.0,41619.0,0.00035737]
[1641742314910,0.3345847,41623.0,41619.0,0.00017869]
[1641742315111,0.3235847,41623.0,41619.0,0.00017869]
[1641742315911,0.3325847,41623.0,41619.0,0.01217869]
[1641742316852,0.3325847,41623.0,41619.0,0.01217866]
[1641742317354,1.3235847,41623.0,41619.0,0.00017866]
[1641742317552,0.387478,41622.0,41619.0,0.00017866]
[1641742317955,0.387478,41622.0,41619.0,0.03135732]
[1641742318153,0.387478,41622.0,41619.0,0.03117866]
[1641742319153,0.387478,41622.0,41618.0,0.00017866]
[1641742319956,0.393478,41622.0,41618.0,0.03917866]
[1641742320152,0.393478,41622.0,41618.0,0.03935732]
[1641742320401,0.393478,41622.0,41618.0,0.03917866]
[1641742320804,1.587478,41619.0,41618.0,0.03917866]
[1641742321001,0.531778,41619.0,41615.0,0.61157271]
[1641742321202,0.387478,41616.0,41615.0,0.61157271]
[1641742321502,0.83335613,41616.0,41615.0,0.61157271]
[1641742321701,0.73335613,41616.0,41615.0,0.61157271]
[1641742322004,0.84335613,41616.0,41615.0,0.61157271]
[1641742322200,0.90347013,41616.0,41615.0,0.61157271]
[1641742322400,0.65125189,41616.0,41615.0,0.61157271]
[1641742322604,0.397478,41616.0,41615.0,0.61157271]
[1641742323203,0.01,41616.0,41615.0,0.61157271]
[1641742323501,0.0443,41625.0,41624.0,0.14057613]
[1641742323702,3.066222,41639.0,41634.0,1.11416894]
[1641742323703,2.0,41639.0,41634.0,1.11416894]
[1641742323902,0.387478,41638.0,41635.0,0.406569]
[1641742324160,0.02459,41641.0,41638.0,0.00129772]
[1641742324357,0.02459,41641.0,41640.0,0.0012001]
[1641742324558,0.00054634,41645.0,41641.0,0.06004247]
[1641742324754,0.0001,41645.0,41642.0,0.387551]
[1641742324955,0.0001,41645.0,41642.0,0.497592]
[1641742325157,0.0001,41645.0,41642.0,0.647592]
[1641742325656,0.0001,41645.0,41644.0,0.387551]
[1641742326060,0.0001,41645.0,41644.0,0.531851]
[1641742326456,0.0001,41645.0,41644.0,0.89208736]
[1641742328003,0.00052533,41647.0,41646.0,0.24028468]
[1641742328205,0.00052533,41647.0,41646.0,0.67213568]
[1641742328705,0.00052533,41647.0,41646.0,0.531851]
[1641742328904,0.00052533,41647.0,41646.0,0.431851]
[1641742329306,0.00031001,41647.0,41646.0,0.431851]
[1641742329505,0.00031001,41647.0,41646.0,0.7642302]
[1641742330104,0.01131001,41647.0,41646.0,0.7722302]
[1641742330707,0.01131001,41647.0,41646.0,0.0523]
[1641742330908,0.01131001,41647.0,41646.0,0.79292098]
[1641742331106,0.01131001,41647.0,41646.0,0.439851]
[1641742331305,0.00031001,41647.0,41646.0,0.431851]
[1641742331756,0.00031001,41647.0,41646.0,0.68787018]
[1641742331953,0.01331001,41647.0,41646.0,0.79687018]
[1641742332356,0.01212,41647.0,41646.0,1.14994016]
[1641742332556,0.00031001,41648.0,41646.0,1.40122575]
[1641742332756,0.00031001,41648.0,41647.0,0.387551]
[1641742332957,0.00031001,41648.0,41647.0,0.431851]
[1641742333155,0.00031001,41648.0,41647.0,0.531851]
[1641742333355,0.00031001,41648.0,41647.0,0.93707574]
[1641742334055,0.00031001,41648.0,41647.0,0.95107574]
[1641742334255,0.00031001,41648.0,41647.0,0.445851]
[1641742334457,0.00031001,41648.0,41647.0,0.79713627]
[1641742334656,0.00031001,41648.0,41647.0,0.75283627]
[1641742335256,0.00031001,41648.0,41647.0,0.73883627]
[1641742335513,0.00031001,41648.0,41647.0,0.435551]
[1641742336116,0.00031001,41648.0,41647.0,0.446551]
[1641742336712,0.00031001,41648.0,41647.0,0.059]
[1641742336910,0.00031001,41648.0,41647.0,0.011]
[1641742337312,0.00031001,41648.0,41647.0,0.048]
[1641742337711,0.07094463,41651.0,41647.0,0.048]
[1641742338113,0.032,41648.0,41647.0,0.052]
[1641742338311,0.032,41648.0,41647.0,0.112044]
[1641742338513,0.032,41648.0,41647.0,0.62089142]
[1641742339159,0.032,41648.0,41647.0,0.67089142]
[1641742339360,0.07094463,41651.0,41647.0,1.11226766]
[1641742339559,0.07094463,41651.0,41648.0,0.447588]
[1641742339761,0.07094463,41651.0,41649.0,0.06003939]
[1641742339961,0.07094463,41651.0,41650.0,0.387551]
[1641742340162,0.07094463,41651.0,41650.0,0.95650579]
[1641742340360,0.07094463,41651.0,41650.0,1.26453779]
[1641742340562,0.07094463,41651.0,41650.0,0.91310787]
[1641742341161,0.07094463,41651.0,41650.0,1.26055493]
[1641742341368,0.0004156,41652.0,41650.0,1.26055493]
[1641742341662,0.00010563,41654.0,41652.0,1.665551]
[1641742341861,0.00263274,41662.0,41655.0,0.447566]
[1641742342060,0.00263274,41662.0,41658.0,0.387551]
[1641742342260,0.00115672,41667.0,41662.0,0.02920081]
[1641742342463,0.00115672,41667.0,41662.0,0.435551]
[1641742342913,0.00115672,41667.0,41662.0,0.535551]
[1641742343114,0.00115672,41667.0,41665.0,0.387551]
[1641742343314,0.00115672,41667.0,41665.0,0.435551]
[1641742343512,0.0007367,41666.0,41665.0,0.535551]
[1641742343712,0.0008367,41686.0,41666.0,0.387551]
[1641742344013,0.02162001,41683.0,41672.0,0.43974438]
[1641742344211,0.02162001,41683.0,41672.0,0.87529538]
[1641742344812,0.00116211,41675.0,41672.0,0.87529538]
[1641742345412,0.00116211,41675.0,41672.0,0.435551]
[1641742345612,0.00116211,41675.0,41672.0,0.43576169]
[1641742345816,0.00116211,41675.0,41672.0,0.00021069]
[1641742346013,0.03105672,41673.0,41672.0,0.00021069]
[1641742347351,0.00105672,41673.0,41672.0,0.00021069]
[1641742348151,0.01705672,41673.0,41672.0,0.00021069]
[1641742348553,0.01205672,41673.0,41672.0,0.00021069]
[1641742348953,0.49953472,41673.0,41672.0,0.00021069]
[1641742349153,1.49953472,41673.0,41672.0,0.00021069]
[1641742349352,1.487478,41673.0,41672.0,0.00021069]
[1641742349553,1.587478,41673.0,41672.0,0.00021069]
[1641742350154,1.597478,41673.0,41672.0,0.00021069]
[1641742350409,1.597478,41673.0,41670.0,0.00084739]
[1641742350609,1.487478,41671.0,41670.0,0.00084739]
[1641742350806,1.487478,41671.0,41667.0,0.0006367]
[1641742350807,0.26,41673.0,41654.0,0.12582556]
[1641742351010,0.40159566,41665.0,41656.0,0.00126322]
[1641742351407,0.36361635,41664.0,41656.0,0.06129322]
[1641742351609,0.3444427,41664.0,41656.0,0.00126322]
[1641742351809,0.34151801,41664.0,41656.0,0.00126322]
[1641742352012,0.25219366,41661.0,41656.0,0.03026322]
[1641742352210,0.25219366,41661.0,41656.0,0.029]
[1641742353212,0.25219366,41661.0,41654.0,0.00577156]
[1641742354010,0.26819366,41661.0,41654.0,0.00577156]
[1641742354277,0.3467809,41660.0,41654.0,0.00577156]
[1641742354878,0.3467809,41660.0,41655.0,0.00018607]
[1641742355081,0.387478,41659.0,41655.0,0.00018607]
[1641742355282,0.25219366,41661.0,41655.0,0.00018607]
[1641742355479,0.59489143,41661.0,41655.0,0.00018607]
[1641742355680,0.25283036,41661.0,41656.0,0.00019653]
[1641742355881,0.25283036,41661.0,41656.0,0.00038626]
[1641742356081,0.0006367,41660.0,41656.0,0.00038626]
[1641742356481,0.0006367,41659.0,41656.0,0.00038626]
[1641742356881,0.0006367,41658.0,41656.0,0.00038626]
[1641742357681,0.0006367,41660.0,41656.0,0.00038626]
[1641742358104,0.009,41658.0,41656.0,0.00019653]
[1641742358505,0.009,41658.0,41657.0,0.20457858]
[1641742358702,0.009,41658.0,41657.0,0.92328212]
[1641742358909,0.0006367,41660.0,41657.0,0.69212958]
[1641742359102,0.0006367,41660.0,41658.0,0.447578]
[1641742359302,0.0006367,41660.0,41659.0,0.31872454]
[1641742359602,0.0006367,41660.0,41659.0,0.387551]
[1641742360004,0.0626367,41660.0,41659.0,0.387551]
[1641742360206,0.0626367,41660.0,41657.0,0.00017903]
[1641742360403,0.0626367,41660.0,41659.0,0.00019524]
[1641742361005,0.6626367,41660.0,41659.0,0.00019524]
[1641742361206,1.0501147,41660.0,41659.0,0.00019524]
[1641742361411,0.3881147,41660.0,41659.0,0.00019524]
[1641742361856,0.0006367,41660.0,41659.0,0.00019524]
[1641742362057,0.3566367,41660.0,41659.0,0.00019524]
[1641742362457,0.7441147,41660.0,41659.0,0.00019524]
[1641742363057,1.4941147,41660.0,41659.0,0.00019524]
[1641742363260,0.7381147,41660.0,41659.0,0.00019524]
[1641742364061,0.7491147,41660.0,41659.0,0.00019524]
[1641742365260,0.7381147,41660.0,41659.0,0.00019524]
[1641742365505,0.7381147,41660.0,41657.0,0.00037487]
[1641742365708,0.387478,41659.0,41657.0,0.00037487]
[1641742366109,0.32485392,41658.0,41657.0,0.00037487]
[1641742366307,0.0116367,41660.0,41657.0,0.00037487]
[1641742366710,0.0116367,41660.0,41658.0,0.387551]
[1641742367407,0.0006367,41660.0,41658.0,0.20702807]
[1641742367808,0.0006367,41660.0,41657.0,0.0014582]
[1641742368209,0.0076367,41660.0,41657.0,0.00162825]
[1641742368509,0.0076367,41660.0,41657.0,0.00036529]
[1641742369363,0.0006367,41660.0,41657.0,0.00019524]
[1641742369959,0.387478,41659.0,41657.0,0.00019524]
[1641742370156,0.487478,41659.0,41657.0,0.00019524]
[1641742370458,0.487478,41659.0,41656.0,0.00080675]
[1641742370459,0.387478,41659.0,41656.0,0.00100194]
[1641742371457,0.387478,41659.0,41656.0,0.00083194]
[1641742371659,0.27058986,41657.0,41656.0,0.00083194]
[1641742371857,0.65806786,41657.0,41656.0,0.00083194]
[1641742372060,0.387478,41657.0,41656.0,0.00083194]
[1641742372259,0.008,41659.0,41656.0,0.00083194]
[1641742372905,0.00637085,41659.0,41656.0,0.00083194]
[1641742373104,0.0058278,41659.0,41656.0,0.00083194]
[1641742373305,0.0007567,41660.0,41656.0,0.00083194]
[1641742373905,0.0006367,41660.0,41656.0,0.00083194]
[1641742374106,0.0146367,41660.0,41656.0,0.00083194]
[1641742374708,1.0,41659.0,41656.0,0.00083194]
[1641742374906,0.387478,41658.0,41656.0,0.00101208]
[1641742375510,0.387478,41658.0,41656.0,0.00081684]
[1641742375907,0.387478,41658.0,41656.0,0.0006367]
[1641742376108,0.403478,41658.0,41656.0,0.0006367]
[1641742377260,0.016,41658.0,41656.0,0.0006367]
[1641742377460,1.0,41659.0,41657.0,0.048]
[1641742377658,1.0,41659.0,41658.0,0.00125945]
[1641742377858,1.0,41659.0,41658.0,0.31029945]
[1641742378258,1.0,41659.0,41658.0,0.74337151]
[1641742378459,1.0,41659.0,41658.0,0.86340951]
[1641742378657,0.0006367,41660.0,41658.0,1.35096051]
[1641742378963,0.0006367,41660.0,41659.0,0.387551]
[1641742379258,0.06206555,41658.0,41657.0,0.32766071]
[1641742379458,0.06206555,41658.0,41657.0,0.71505471]
[1641742379960,0.06206555,41658.0,41657.0,0.83509271]
[1641742380804,0.06206555,41658.0,41657.0,1.15312601]
[1641742382008,0.06206555,41658.0,41657.0,1.35312601]
[1641742382407,0.06206555,41658.0,41657.0,1.40112601]
[1641742382807,0.06206555,41658.0,41657.0,1.75112601]
[1641742383006,0.0006367,41660.0,41658.0,0.120032]
[1641742383207,0.0006367,41660.0,41659.0,0.78148393]
[1641742384006,0.0006367,41660.0,41659.0,0.78274062]
[1641742384458,0.0006367,41660.0,41659.0,0.435394]
[1641742384658,0.0006367,41660.0,41659.0,0.048]
[1641742384857,0.0006367,41660.0,41657.0,0.26658633]
[1641742385660,0.0006367,41660.0,41659.0,0.00019524]
[1641742386061,0.0026367,41660.0,41659.0,0.00019524]
[1641742387460,0.0006367,41660.0,41659.0,0.00019524]
[1641742388112,0.0009064,41660.0,41659.0,0.00019524]
[1641742388311,0.3883004,41660.0,41659.0,0.00019524]
[1641742388512,0.74110701,41660.0,41659.0,0.00019524]
[1641742388711,1.34110701,41660.0,41659.0,0.00019524]
[1641742388912,0.74110701,41660.0,41659.0,0.00019524]
[1641742389116,0.3883004,41660.0,41659.0,0.00019524]
[1641742389310,0.387394,41660.0,41659.0,0.00019524]
[1641742389713,0.687394,41660.0,41659.0,0.00019524]
[1641742390214,0.395394,41660.0,41659.0,0.00019524]
[1641742390412,0.395394,41660.0,41657.0,0.00101154]
[1641742390614,0.008,41660.0,41657.0,0.00101154]
[1641742391415,0.0006367,41661.0,41657.0,0.00101154]
[1641742391661,0.387394,41660.0,41657.0,0.00083194]
[1641742394165,0.395394,41660.0,41657.0,0.00083194]
[1641742394966,0.33301317,41659.0,41657.0,0.00083194]
[1641742395164,0.387394,41658.0,41657.0,0.00083194]
[1641742395609,0.387394,41658.0,41657.0,0.0006367]
[1641742396210,0.69769431,41658.0,41656.0,0.0045804]
[1641742396412,0.007,41658.0,41656.0,0.00583109]
[1641742396613,0.007,41658.0,41657.0,1.48862292]
[1641742396811,0.007,41658.0,41657.0,1.53662292]
[1641742397212,0.007,41658.0,41657.0,0.43662292]
[1641742397412,0.007,41658.0,41657.0,0.67001872]
[1641742397813,0.0006367,41670.0,41657.0,0.67001872]
[1641742398015,0.0006367,41670.0,41658.0,0.06002745]
[1641742398612,0.0006367,41669.0,41658.0,0.0006367]
[1641742399013,0.0006367,41669.0,41659.0,0.0006367]
[1641742399261,0.0006367,41669.0,41660.0,0.0006367]
[1641742399462,0.00188152,41668.0,41660.0,0.0006367]
[1641742399664,0.1006367,41667.0,41661.0,0.0006367]
[1641742399865,0.387394,41664.0,41661.0,0.0006367]
[1641742400066,2.31845689,41662.0,41661.0,0.0006367]
[1641742400263,2.70585089,41662.0,41661.0,0.0006367]
[1641742400463,2.80585089,41662.0,41661.0,0.00083107]
[1641742400664,2.80585089,41662.0,41656.0,0.00295827]
[1641742400665,0.387394,41661.0,41656.0,0.00295827]
[1641742401062,0.30445372,41657.0,41656.0,0.00295827]
[1641742401263,0.06189394,41664.0,41656.0,0.00295827]
[1641742401662,0.0006367,41663.0,41646.0,0.060038]
[1641742401962,0.4354281,41661.0,41654.0,0.00018656]
[1641742402364,0.4360648,41661.0,41654.0,0.00018656]
[1641742402664,0.00012,41658.0,41657.0,7.022e-05]
[1641742402919,0.387514,41658.0,41657.0,0.00014044]
[1641742403118,0.537514,41658.0,41657.0,0.00014044]
[1641742403321,0.5881507,41658.0,41657.0,0.00014044]
[1641742403519,0.5881507,41658.0,41657.0,7.022e-05]
[1641742403722,0.6482017,41658.0,41657.0,7.022e-05]
[1641742403920,0.4482017,41658.0,41657.0,7.022e-05]
[1641742404119,0.4552017,41658.0,41655.0,0.00018656]
[1641742405121,0.4552017,41658.0,41654.0,0.00018656]
[1641742405320,0.3951507,41658.0,41654.0,0.00018656]
[1641742405521,0.3881507,41658.0,41657.0,0.00017666]
[1641742405726,0.0007567,41658.0,41657.0,0.00017666]
[1641742406121,0.0247567,41658.0,41657.0,0.00017666]
[1641742406660,0.0006367,41661.0,41657.0,0.38757066]
[1641742406960,0.0006367,41661.0,41657.0,0.31669989]
[1641742407358,0.0006367,41661.0,41657.0,0.31687971]
[1641742408158,0.0226367,41661.0,41657.0,0.31887971]
[1641742408359,0.0226367,41661.0,41658.0,0.79117709]
[1641742408562,0.0226367,41661.0,41659.0,0.00127442]
[1641742408763,0.0226367,41661.0,41660.0,0.387394]
[1641742409060,0.0226367,41661.0,41660.0,0.8475463]
[1641742409461,0.0006367,41661.0,41660.0,0.8475463]
[1641742409661,0.00187651,41675.0,41660.0,0.8475463]
[1641742409860,0.00187651,41675.0,41665.0,0.446309]
[1641742410060,0.00187651,41675.0,41666.0,0.32294633]
[1641742410711,0.00187651,41675.0,41667.0,0.23681581]
[1641742411312,0.00011121,41672.0,41667.0,0.23681581]
[1641742412311,0.00111121,41672.0,41667.0,0.26181581]
[1641742413112,0.00111121,41672.0,41667.0,0.26117451]
[1641742413513,0.00011121,41672.0,41668.0,0.0006367]
[1641742413816,0.00011121,41672.0,41669.0,0.0006367]
[1641742414265,0.01511121,41672.0,41670.0,0.0006367]
[1641742414466,0.015,41672.0,41671.0,0.0006367]
[1641742415365,0.00021138,41673.0,41671.0,0.3880307]
[1641742415566,0.00021118,41674.0,41671.0,0.00080732]
[1641742415767,0.00021118,41674.0,41672.0,0.3732989]
[1641742416266,0.02521118,41674.0,41672.0,0.3732989]
[1641742416469,0.02521118,41674.0,41673.0,1.4407393]
[1641742416668,0.02390118,41674.0,41673.0,0.77741214]
[1641742416866,0.00104671,41676.0,41674.0,0.887394]
[1641742417066,0.00504671,41689.0,41675.0,0.048]
[1641742417270,0.00504671,41689.0,41680.0,0.00123305]
[1641742417467,0.00504671,41689.0,41681.0,0.387394]
[1641742417666,0.00504671,41689.0,41681.0,0.76008935]
[1641742417910,0.02190211,41682.0,41681.0,0.76008935]
[1641742418310,0.03890211,41682.0,41681.0,0.76233557]
[1641742418510,0.03890211,41682.0,41681.0,0.61715043]
[1641742419512,0.02190211,41682.0,41681.0,0.61615043]
[1641742419916,0.02190211,41682.0,41680.0,0.059997]
[1641742420113,0.02190211,41682.0,41679.0,0.00018984]
[1641742420317,0.92090211,41682.0,41681.0,0.011]
[1641742420515,1.30829611,41682.0,41681.0,0.0111663]
[1641742420714,1.64192445,41682.0,41681.0,0.0111663]
[1641742421318,0.40829611,41682.0,41681.0,0.0111663]
[1641742421516,0.40829611,41682.0,41681.0,0.0001663]
[1641742421517,0.01690211,41682.0,41681.0,0.0001663]
[1641742421977,0.01190211,41682.0,41681.0,0.0001663]
[1641742422178,0.02790211,41682.0,41681.0,0.0001663]
[1641742423579,0.00690211,41682.0,41681.0,0.0001663]
[1641742424080,0.00190211,41682.0,41681.0,0.0001663]
[1641742424281,0.467,41682.0,41681.0,0.0011663]
[1641742424879,0.26310076,41682.0,41681.0,0.0011663]
[1641742425279,0.26310076,41682.0,41681.0,0.19783005]
[1641742425514,1.09793592,41688.0,41681.0,0.19683005]
[1641742425713,0.387394,41687.0,41681.0,0.0001663]
[1641742426112,0.487394,41687.0,41681.0,0.0001663]
[1641742426312,0.487394,41687.0,41681.0,0.000803]
[1641742426716,0.487394,41687.0,41682.0,0.0006367]
[1641742426914,0.27694604,41686.0,41682.0,0.0006367]
[1641742427113,0.387394,41685.0,41683.0,0.0006367]
[1641742427412,0.387394,41685.0,41684.0,0.0006367]
[1641742427812,0.3867573,41685.0,41684.0,0.0006367]
[1641742428012,0.3867573,41685.0,41684.0,0.21812454]
[1641742428214,0.4047573,41685.0,41684.0,0.21812454]
[1641742428513,0.018,41685.0,41684.0,0.21812454]
[1641742429361,0.018,41685.0,41684.0,0.0006367]
[1641742429564,0.00021523,41687.0,41684.0,0.0006367]
[1641742429762,0.387177,41686.0,41684.0,0.0006367]
[1641742429966,0.487177,41686.0,41684.0,0.0006367]
[1641742430162,1.15788078,41685.0,41684.0,0.0006367]
[1641742430361,0.64514078,41685.0,41684.0,0.0008017]
[1641742430965,0.38726,41685.0,41684.0,0.0008017]
[1641742431764,0.38226,41685.0,41684.0,0.0008017]
[1641742431963,0.00021523,41687.0,41684.0,0.0008017]
[1641742432167,0.013,41685.0,41684.0,0.0008017]
[1641742432365,0.013,41685.0,41684.0,0.20444916]
[1641742432765,0.013,41685.0,41684.0,0.0008017]
[1641742433410,0.00020745,41687.0,41684.0,0.0008017]
[1641742433608,0.382177,41686.0,41684.0,0.0008017]
[1641742434208,0.394177,41686.0,41684.0,0.0008017]
[1641742435412,0.382177,41686.0,41684.0,0.0008017]
[1641742435613,0.00020745,41687.0,41684.0,0.0008017]
[1641742436213,0.38726,41686.0,41684.0,0.0008017]
[1641742437564,0.25097624,41685.0,41684.0,0.0008017]